[Event "Titled Tuesday Blitz September 28 2021"]
[White "Holt, Conrad"]
[Black "Babazada, Khazar"]
[WhiteFideId "2034387"]
[BlackFideId "13413554"]
[WhiteElo "2870"]
[BlackElo "2787"]
[Result "1-0"]
[Round "07"]
[TimeControl "180+1"]
[Date "2021.09.28"]
[WhiteClock "0:00:07"]
[BlackClock "0:00:01"]

1. d4 {[%clk 0:03:00]}  d5 {[%clk 0:02:58]} 2. c4 {[%clk 0:03:01]}  e6 {[%clk 0:02:56]} 3. Nc3 {[%clk 0:03:01]}  Nf6 {[%clk 0:02:56]} 4. cxd5 {[%clk 0:03:01]}  exd5 {[%clk 0:02:56]} 5. Bg5 {[%clk 0:03:00]}  Be7 {[%clk 0:02:56]} 6. e3 {[%clk 0:03:01]}  c6 {[%clk 0:02:56]} 7. Qc2 {[%clk 0:02:57]}  Be6 {[%clk 0:02:56]} 8. Bd3 {[%clk 0:02:57]}  Nbd7 {[%clk 0:02:56]} 9. Nge2 {[%clk 0:02:56]}  h6 {[%clk 0:02:56]} 10. Bh4 {[%clk 0:02:56]}  O-O {[%clk 0:02:52]} 11. O-O {[%clk 0:02:53]}  c5 {[%clk 0:02:51]} 12. Nf4 {[%clk 0:02:46]}  Rc8 {[%clk 0:02:48]} 13. Qe2 {[%clk 0:02:33]}  a6 {[%clk 0:02:45]} 14. Rad1 {[%clk 0:02:29]}  Qb6 {[%clk 0:02:44]} 15. Bb1 {[%clk 0:02:24]}  Rfe8 {[%clk 0:02:40]} 16. dxc5 {[%clk 0:02:14]}  Qxc5 {[%clk 0:02:27]} 17. Nxe6 {[%clk 0:02:01]}  fxe6 {[%clk 0:02:28]} 18. e4 {[%clk 0:02:01]}  d4 {[%clk 0:02:12]} 19. e5 {[%clk 0:01:47]}  Nxe5 {[%clk 0:02:04]} 20. Ne4 {[%clk 0:01:38]}  Nxe4 {[%clk 0:01:44]} 21. Bxe7 {[%clk 0:01:31]}  Rxe7 {[%clk 0:01:45]} 22. Qxe4 {[%clk 0:01:29]}  Rd8 {[%clk 0:01:46]} 23. Rfe1 {[%clk 0:01:18]}  Nf7 {[%clk 0:01:44]} 24. Qh7+ {[%clk 0:01:12]}  Kf8 {[%clk 0:01:44]} 25. Bd3 {[%clk 0:01:08]}  Rd5 {[%clk 0:01:35]} 26. Rc1 {[%clk 0:01:03]}  Qa5 {[%clk 0:01:34]} 27. Rc8+ {[%clk 0:00:43]}  Rd8 {[%clk 0:01:33]} 28. Rec1 {[%clk 0:00:40]}  Ree8 {[%clk 0:01:22]} 29. R8c7 {[%clk 0:00:36]}  Re7 {[%clk 0:01:20]} 30. Rxe7 {[%clk 0:00:34]}  Kxe7 {[%clk 0:01:21]} 31. Qxg7 {[%clk 0:00:21]}  Qe5 {[%clk 0:01:18]} 32. Qg4 {[%clk 0:00:17]}  Rd7 {[%clk 0:01:01]} 33. h4 {[%clk 0:00:15]}  h5 {[%clk 0:00:58]} 34. Qf3 {[%clk 0:00:14]}  Qf6 {[%clk 0:00:52]} 35. Qxh5 {[%clk 0:00:13]}  Ne5 {[%clk 0:00:49]} 36. Bf1 {[%clk 0:00:04]}  d3 {[%clk 0:00:23]} 37. Rd1 {[%clk 0:00:04]}  Qg7 {[%clk 0:00:19]} 38. Qg5+ {[%clk 0:00:03]}  Qxg5 {[%clk 0:00:16]} 39. hxg5 {[%clk 0:00:04]}  d2 {[%clk 0:00:17]} 40. f3 {[%clk 0:00:04]}  Rd5 {[%clk 0:00:14]} 41. Kf2 {[%clk 0:00:04]}  Nc6 {[%clk 0:00:13]} 42. Ke3 {[%clk 0:00:04]}  Rxg5 {[%clk 0:00:11]} 43. Rxd2 {[%clk 0:00:04]}  Re5+ {[%clk 0:00:09]} 44. Kf2 {[%clk 0:00:04]}  b5 {[%clk 0:00:09]} 45. a3 {[%clk 0:00:04]}  Rc5 {[%clk 0:00:07]} 46. Bd3 {[%clk 0:00:04]}  Kf6 {[%clk 0:00:08]} 47. Be4 {[%clk 0:00:04]}  Ne5 {[%clk 0:00:08]} 48. Kg3 {[%clk 0:00:04]}  Rc1 {[%clk 0:00:07]} 49. Rd6 {[%clk 0:00:04]}  Nc4 {[%clk 0:00:08]} 50. Rxa6 {[%clk 0:00:04]}  Nxb2 {[%clk 0:00:08]} 51. Bd5 {[%clk 0:00:04]}  Re1 {[%clk 0:00:07]} 52. Bc6 {[%clk 0:00:05]}  Re5 {[%clk 0:00:06]} 53. Bd7 {[%clk 0:00:04]}  Nc4 {[%clk 0:00:05]} 54. Kf2 {[%clk 0:00:04]}  Ke7 {[%clk 0:00:04]} 55. Bc6 {[%clk 0:00:03]}  Kd8 {[%clk 0:00:04]} 56. Be4 {[%clk 0:00:03]}  Rc5 {[%clk 0:00:04]} 57. g4 {[%clk 0:00:03]}  Ke7 {[%clk 0:00:04]} 58. Ra7+ {[%clk 0:00:03]}  Kf6 {[%clk 0:00:04]} 59. Kg3 {[%clk 0:00:04]}  Nd6 {[%clk 0:00:05]} 60. Bd3 {[%clk 0:00:03]}  Rc3 {[%clk 0:00:05]} 61. Be2 {[%clk 0:00:04]}  Ke5 {[%clk 0:00:06]} 62. Kf2 {[%clk 0:00:04]}  Rc2 {[%clk 0:00:05]} 63. Ke1 {[%clk 0:00:03]}  Rc1+ {[%clk 0:00:05]} 64. Kd2 {[%clk 0:00:03]}  Ra1 {[%clk 0:00:06]} 65. Ra5 {[%clk 0:00:03]}  Ra2+ {[%clk 0:00:06]} 66. Ke1 {[%clk 0:00:04]}  Ra1+ {[%clk 0:00:06]} 67. Kf2 {[%clk 0:00:04]}  Ra2 {[%clk 0:00:07]} 68. Kf1 {[%clk 0:00:04]}  Ra1+ {[%clk 0:00:07]} 69. Kf2 {[%clk 0:00:04]}  Ra2 {[%clk 0:00:08]} 70. Ke3 {[%clk 0:00:05]}  Rb2 {[%clk 0:00:05]} 71. f4+ {[%clk 0:00:05]}  Kd5 {[%clk 0:00:06]} 72. Bf3+ {[%clk 0:00:06]}  Kc5 {[%clk 0:00:06]} 73. Ra6 {[%clk 0:00:05]}  Rb3+ {[%clk 0:00:06]} 74. Ke2 {[%clk 0:00:06]}  Rb2+ {[%clk 0:00:06]} 75. Kf1 {[%clk 0:00:06]}  Rb3 {[%clk 0:00:05]} 76. Rc6+ {[%clk 0:00:06]}  Kd4 {[%clk 0:00:06]} 77. Rxd6+ {[%clk 0:00:06]}  Ke3 {[%clk 0:00:07]} 78. Bd1 {[%clk 0:00:06]}  Kxf4 {[%clk 0:00:06]} 79. Rxe6 {[%clk 0:00:07]}  Rxa3 {[%clk 0:00:06]} 80. Rf6+ {[%clk 0:00:07]}  Kg3 {[%clk 0:00:06]} 81. g5 {[%clk 0:00:07]}  Kh4 {[%clk 0:00:04]} 82. g6 {[%clk 0:00:07]}  Rg3 {[%clk 0:00:05]} 83. Rf4+ {[%clk 0:00:07]}  Kg5 {[%clk 0:00:05]} 84. Rb4 {[%clk 0:00:06]}  Kxg6 {[%clk 0:00:05]} 85. Rxb5 {[%clk 0:00:07]}  Re3 {[%clk 0:00:06]} 86. Kf2 {[%clk 0:00:07]}  Re6 {[%clk 0:00:05]} 87. Bg4 {[%clk 0:00:07]}  Rf6+ {[%clk 0:00:05]} 88. Ke3 {[%clk 0:00:07]}  Rd6 {[%clk 0:00:06]} 89. Ke4 {[%clk 0:00:07]}  Kf6 {[%clk 0:00:06]} 90. Rh5 {[%clk 0:00:06]}  Ke7 {[%clk 0:00:06]} 91. Ke5 {[%clk 0:00:06]}  Rd1 {[%clk 0:00:06]} 92. Rh7+ {[%clk 0:00:06]}  Kd8 {[%clk 0:00:06]} 93. Bf3 {[%clk 0:00:06]}  Re1+ {[%clk 0:00:07]} 94. Kd6 {[%clk 0:00:07]}  Ra1 {[%clk 0:00:04]} 95. Bd5 {[%clk 0:00:06]}  Ra6+ {[%clk 0:00:01]} 96. Bc6 {[%clk 0:00:07]} 1-0


[Site "https://www.chess.com"]

[Event "Titled Tuesday Blitz September 28 2021"]
[White "Horak, Martin"]
[Black "Gontcharov, Vladislav"]
[WhiteFideId "367095"]
[BlackFideId "4123492"]
[WhiteElo "1997"]
[BlackElo "2503"]
[Result "0-1"]
[Round "07"]
[TimeControl "180+1"]
[Date "2021.09.28"]
[WhiteClock "0:00:03"]
[BlackClock "0:00:50"]

1. e4 {[%clk 0:03:00]}  e6 {[%clk 0:02:56]} 2. d4 {[%clk 0:02:53]}  d5 {[%clk 0:02:56]} 3. Nd2 {[%clk 0:02:53]}  Be7 {[%clk 0:02:55]} 4. Bd3 {[%clk 0:02:52]}  c5 {[%clk 0:02:46]} 5. dxc5 {[%clk 0:02:53]}  Nf6 {[%clk 0:02:46]} 6. Qe2 {[%clk 0:02:51]}  a5 {[%clk 0:02:42]} 7. Ngf3 {[%clk 0:02:25]}  Na6 {[%clk 0:02:41]} 8. e5 {[%clk 0:02:06]}  Nd7 {[%clk 0:02:40]} 9. O-O {[%clk 0:01:55]}  Ndxc5 {[%clk 0:02:33]} 10. Re1 {[%clk 0:01:40]}  O-O {[%clk 0:02:30]} 11. Bb5 {[%clk 0:01:36]}  Nc7 {[%clk 0:02:27]} 12. a4 {[%clk 0:01:27]}  b6 {[%clk 0:02:20]} 13. b3 {[%clk 0:01:17]}  Nxb5 {[%clk 0:02:17]} 14. axb5 {[%clk 0:01:16]}  Bb7 {[%clk 0:02:17]} 15. Nd4 {[%clk 0:01:14]}  Qc7 {[%clk 0:02:11]} 16. N2f3 {[%clk 0:01:12]}  Ne4 {[%clk 0:02:11]} 17. Bb2 {[%clk 0:01:07]}  Bb4 {[%clk 0:02:04]} 18. Rec1 {[%clk 0:00:50]}  Nc3 {[%clk 0:01:43]} 19. Qe3 {[%clk 0:00:48]}  Rfc8 {[%clk 0:01:38]} 20. Ne1 {[%clk 0:00:36]}  Qc5 {[%clk 0:01:34]} 21. Nd3 {[%clk 0:00:33]}  Qxd4 {[%clk 0:01:33]} 22. Qxd4 {[%clk 0:00:32]}  Ne2+ {[%clk 0:01:34]} 23. Kf1 {[%clk 0:00:32]}  Nxd4 {[%clk 0:01:34]} 24. Bxd4 {[%clk 0:00:33]}  Bc3 {[%clk 0:01:31]} 25. Bxc3 {[%clk 0:00:30]}  Rxc3 {[%clk 0:01:32]} 26. Ke2 {[%clk 0:00:29]}  d4 {[%clk 0:01:32]} 27. f3 {[%clk 0:00:20]}  Rac8 {[%clk 0:01:27]} 28. Kd2 {[%clk 0:00:20]}  Rd8 {[%clk 0:01:17]} 29. Ra4 {[%clk 0:00:19]}  Rd5 {[%clk 0:01:16]} 30. Rc4 {[%clk 0:00:19]}  Rxb5 {[%clk 0:01:14]} 31. Rxc3 {[%clk 0:00:18]}  dxc3+ {[%clk 0:01:14]} 32. Kxc3 {[%clk 0:00:19]}  Kf8 {[%clk 0:01:13]} 33. Kd4 {[%clk 0:00:18]}  Ke7 {[%clk 0:01:12]} 34. Rd1 {[%clk 0:00:14]}  f6 {[%clk 0:01:07]} 35. f4 {[%clk 0:00:12]}  Rd5+ {[%clk 0:01:05]} 36. Kc3 {[%clk 0:00:11]}  fxe5 {[%clk 0:01:03]} 37. fxe5 {[%clk 0:00:11]}  Ba6 {[%clk 0:01:03]} 38. Re1 {[%clk 0:00:10]}  Bxd3 {[%clk 0:00:55]} 39. cxd3 {[%clk 0:00:11]}  Rc5+ {[%clk 0:00:55]} 40. Kd4 {[%clk 0:00:09]}  Rb5 {[%clk 0:00:55]} 41. Kc4 {[%clk 0:00:09]}  Rb4+ {[%clk 0:00:55]} 42. Kc3 {[%clk 0:00:09]}  Rg4 {[%clk 0:00:55]} 43. g3 {[%clk 0:00:09]}  h5 {[%clk 0:00:55]} 44. d4 {[%clk 0:00:09]}  h4 {[%clk 0:00:54]} 45. Re3 {[%clk 0:00:10]}  h3 {[%clk 0:00:53]} 46. Kc4 {[%clk 0:00:09]}  Kd7 {[%clk 0:00:50]} 47. Rf3 {[%clk 0:00:03]}  Kc6 {[%clk 0:00:50]} 0-1


[Site "https://www.chess.com"]

[Event "Titled Tuesday Blitz September 28 2021"]
[White "Korobov, Anton"]
[Black "Perez Ponsa, Federico"]
[WhiteFideId "14105730"]
[BlackFideId "117927"]
[WhiteElo "2983"]
[BlackElo "2853"]
[Result "0-1"]
[Round "07"]
[TimeControl "180+1"]
[Date "2021.09.28"]
[WhiteClock "0:00:20"]
[BlackClock "0:00:51"]

1. d4 {[%clk 0:03:00]}  Nf6 {[%clk 0:03:00]} 2. c4 {[%clk 0:03:01]}  e6 {[%clk 0:03:00]} 3. Nc3 {[%clk 0:03:01]}  Bb4 {[%clk 0:03:00]} 4. e3 {[%clk 0:03:02]}  O-O {[%clk 0:03:00]} 5. Bd3 {[%clk 0:03:02]}  d5 {[%clk 0:02:59]} 6. a3 {[%clk 0:03:02]}  Bxc3+ {[%clk 0:02:56]} 7. bxc3 {[%clk 0:03:03]}  dxc4 {[%clk 0:02:56]} 8. Bxc4 {[%clk 0:03:04]}  c5 {[%clk 0:02:57]} 9. Nf3 {[%clk 0:03:04]}  Qc7 {[%clk 0:02:57]} 10. Ba2 {[%clk 0:03:00]}  b6 {[%clk 0:02:53]} 11. O-O {[%clk 0:03:00]}  Bb7 {[%clk 0:02:54]} 12. Nd2 {[%clk 0:03:00]}  Nbd7 {[%clk 0:02:53]} 13. Bb2 {[%clk 0:02:57]}  Rac8 {[%clk 0:02:53]} 14. f3 {[%clk 0:02:54]}  Nd5 {[%clk 0:02:47]} 15. Qe1 {[%clk 0:02:18]}  cxd4 {[%clk 0:02:38]} 16. cxd4 {[%clk 0:02:19]}  Qc2 {[%clk 0:02:34]} 17. Rb1 {[%clk 0:02:19]}  Qd3 {[%clk 0:02:34]} 18. Bxd5 {[%clk 0:01:40]}  exd5 {[%clk 0:02:20]} 19. Rf2 {[%clk 0:01:36]}  Rfe8 {[%clk 0:02:20]} 20. Nf1 {[%clk 0:01:36]}  Ba6 {[%clk 0:02:19]} 21. Rc1 {[%clk 0:01:11]}  Nf6 {[%clk 0:02:09]} 22. Rxc8 {[%clk 0:01:09]}  Rxc8 {[%clk 0:02:10]} 23. Ng3 {[%clk 0:01:06]}  Re8 {[%clk 0:02:02]} 24. Bc1 {[%clk 0:01:05]}  Qxd4 {[%clk 0:01:55]} 25. Nf5 {[%clk 0:01:01]}  Qe5 {[%clk 0:01:52]} 26. g4 {[%clk 0:01:01]}  g6 {[%clk 0:01:52]} 27. Bb2 {[%clk 0:01:01]}  Qe6 {[%clk 0:01:46]} 28. Nh6+ {[%clk 0:00:59]}  Kf8 {[%clk 0:01:47]} 29. Qb4+ {[%clk 0:00:52]}  Re7 {[%clk 0:01:47]} 30. Qd4 {[%clk 0:00:51]}  Bc4 {[%clk 0:01:37]} 31. g5 {[%clk 0:00:45]}  Re8 {[%clk 0:01:36]} 32. Qxf6 {[%clk 0:00:37]}  Qxf6 {[%clk 0:01:32]} 33. Bxf6 {[%clk 0:00:38]}  Rxe3 {[%clk 0:01:32]} 34. a4 {[%clk 0:00:38]}  Ra3 {[%clk 0:01:24]} 35. f4 {[%clk 0:00:32]}  Rxa4 {[%clk 0:01:18]} 36. f5 {[%clk 0:00:32]}  Ra2 {[%clk 0:01:12]} 37. fxg6 {[%clk 0:00:25]}  hxg6 {[%clk 0:01:09]} 38. Bb2 {[%clk 0:00:25]}  d4 {[%clk 0:01:06]} 39. Bxd4 {[%clk 0:00:24]}  Rxf2 {[%clk 0:01:05]} 40. Kxf2 {[%clk 0:00:25]}  Be6 {[%clk 0:01:06]} 41. Ke3 {[%clk 0:00:23]}  Ke7 {[%clk 0:01:05]} 42. Kf4 {[%clk 0:00:23]}  Kd6 {[%clk 0:01:05]} 43. Ng8 {[%clk 0:00:22]}  Kd5 {[%clk 0:01:03]} 44. Ke3 {[%clk 0:00:22]}  Kc6 {[%clk 0:01:01]} 45. Ke4 {[%clk 0:00:21]}  a5 {[%clk 0:01:01]} 46. Ke5 {[%clk 0:00:20]}  b5 {[%clk 0:01:01]} 47. Ne7+ {[%clk 0:00:20]}  Kd7 {[%clk 0:00:59]} 48. Nd5 {[%clk 0:00:20]}  b4 {[%clk 0:00:58]} 49. Be3 {[%clk 0:00:20]}  Kc6 {[%clk 0:00:59]} 50. Ne7+ {[%clk 0:00:20]}  Kd7 {[%clk 0:00:56]} 51. Nd5 {[%clk 0:00:20]}  Kc6 {[%clk 0:00:56]} 52. Nf4 {[%clk 0:00:20]}  Bc4 {[%clk 0:00:54]} 53. Bd2 {[%clk 0:00:21]}  Kb5 {[%clk 0:00:54]} 54. Nd5 {[%clk 0:00:21]}  Bxd5 {[%clk 0:00:53]} 55. Kxd5 {[%clk 0:00:21]}  a4 {[%clk 0:00:53]} 56. Kd4 {[%clk 0:00:20]}  a3 {[%clk 0:00:52]} 57. Kd3 {[%clk 0:00:20]}  a2 {[%clk 0:00:51]} 0-1


[Site "https://www.chess.com"]

[Event "Titled Tuesday Blitz September 28 2021"]
[White "Kovalchuk94"]
[Black "Indjic, Aleksandar"]
[BlackFideId "911925"]
[WhiteElo "2683"]
[BlackElo "2643"]
[Result "0-1"]
[Round "07"]
[TimeControl "180+1"]
[Date "2021.09.28"]
[WhiteClock "0:00:09"]
[BlackClock "0:00:54"]

1. d4 {[%clk 0:03:00]}  d5 {[%clk 0:03:00]} 2. c4 {[%clk 0:03:00]}  c5 {[%clk 0:02:59]} 3. cxd5 {[%clk 0:03:00]}  Qxd5 {[%clk 0:02:58]} 4. Nf3 {[%clk 0:02:59]}  cxd4 {[%clk 0:02:58]} 5. Nc3 {[%clk 0:02:59]}  Qa5 {[%clk 0:02:56]} 6. Nxd4 {[%clk 0:02:58]}  Nf6 {[%clk 0:02:55]} 7. Nb3 {[%clk 0:02:33]}  Qc7 {[%clk 0:02:52]} 8. Bg5 {[%clk 0:02:31]}  e6 {[%clk 0:02:46]} 9. Rc1 {[%clk 0:02:22]}  Nc6 {[%clk 0:02:45]} 10. e3 {[%clk 0:02:20]}  a6 {[%clk 0:02:44]} 11. Be2 {[%clk 0:02:20]}  Be7 {[%clk 0:02:42]} 12. O-O {[%clk 0:02:18]}  O-O {[%clk 0:02:42]} 13. Bh4 {[%clk 0:02:01]}  Bd6 {[%clk 0:02:39]} 14. Bxf6 {[%clk 0:01:54]}  gxf6 {[%clk 0:02:38]} 15. g3 {[%clk 0:01:53]}  Rd8 {[%clk 0:02:35]} 16. Qc2 {[%clk 0:01:53]}  Qe7 {[%clk 0:02:22]} 17. Rfd1 {[%clk 0:01:48]}  f5 {[%clk 0:02:21]} 18. Bf3 {[%clk 0:01:44]}  Bd7 {[%clk 0:02:19]} 19. Nd4 {[%clk 0:01:32]}  Rac8 {[%clk 0:02:14]} 20. Nxc6 {[%clk 0:01:31]}  Bxc6 {[%clk 0:02:15]} 21. Bxc6 {[%clk 0:01:29]}  Rxc6 {[%clk 0:02:15]} 22. Rd3 {[%clk 0:01:28]}  Be5 {[%clk 0:02:15]} 23. Rcd1 {[%clk 0:01:22]}  Rxd3 {[%clk 0:02:14]} 24. Rxd3 {[%clk 0:01:23]}  Kg7 {[%clk 0:02:13]} 25. Qd2 {[%clk 0:01:23]}  Rc7 {[%clk 0:02:12]} 26. Ne2 {[%clk 0:01:20]}  Qc5 {[%clk 0:02:10]} 27. Nd4 {[%clk 0:01:16]}  Qc1+ {[%clk 0:02:10]} 28. Kg2 {[%clk 0:01:12]}  Qxd2 {[%clk 0:02:09]} 29. Rxd2 {[%clk 0:01:13]}  Kf8 {[%clk 0:02:04]} 30. b3 {[%clk 0:01:02]}  Ke7 {[%clk 0:02:03]} 31. Kf3 {[%clk 0:00:57]}  Rd7 {[%clk 0:01:59]} 32. Ke2 {[%clk 0:00:53]}  Bxd4 {[%clk 0:01:58]} 33. Rxd4 {[%clk 0:00:53]}  Rxd4 {[%clk 0:01:55]} 34. exd4 {[%clk 0:00:54]}  Kd6 {[%clk 0:01:55]} 35. Kd3 {[%clk 0:00:50]}  Kd5 {[%clk 0:01:56]} 36. b4 {[%clk 0:00:47]}  f6 {[%clk 0:01:47]} 37. f4 {[%clk 0:00:41]}  b6 {[%clk 0:01:43]} 38. h3 {[%clk 0:00:37]}  Kc6 {[%clk 0:01:42]} 39. a4 {[%clk 0:00:34]}  b5 {[%clk 0:01:36]} 40. a5 {[%clk 0:00:24]}  Kd6 {[%clk 0:01:03]} 41. g4 {[%clk 0:00:18]}  fxg4 {[%clk 0:01:01]} 42. hxg4 {[%clk 0:00:18]}  f5 {[%clk 0:01:00]} 43. g5 {[%clk 0:00:08]}  Kd5 {[%clk 0:00:59]} 44. Ke3 {[%clk 0:00:06]}  Kc4 {[%clk 0:00:59]} 45. Kf3 {[%clk 0:00:05]}  Kxb4 {[%clk 0:00:58]} 46. Kg3 {[%clk 0:00:05]}  Kc4 {[%clk 0:00:58]} 47. Kh4 {[%clk 0:00:06]}  b4 {[%clk 0:00:57]} 48. Kh5 {[%clk 0:00:07]}  b3 {[%clk 0:00:57]} 49. Kh6 {[%clk 0:00:08]}  b2 {[%clk 0:00:57]} 50. g6 {[%clk 0:00:09]}  hxg6 {[%clk 0:00:54]} 0-1


[Site "https://www.chess.com"]

[Event "Titled Tuesday Blitz September 28 2021"]
[White "Kovanova, Baira"]
[Black "Lukovic, Vladimir"]
[WhiteFideId "4164083"]
[BlackFideId "942952"]
[WhiteElo "2187"]
[BlackElo "2436"]
[Result "0-1"]
[Round "07"]
[TimeControl "180+1"]
[Date "2021.09.28"]
[WhiteClock "0:00:01"]
[BlackClock "0:00:03"]

1. e4 {[%clk 0:03:00]}  e5 {[%clk 0:02:56]} 2. Nf3 {[%clk 0:03:00]}  Nc6 {[%clk 0:02:56]} 3. Bb5 {[%clk 0:03:00]}  a6 {[%clk 0:02:56]} 4. Ba4 {[%clk 0:02:59]}  Nf6 {[%clk 0:02:56]} 5. d3 {[%clk 0:02:59]}  b5 {[%clk 0:02:54]} 6. Bb3 {[%clk 0:02:59]}  Be7 {[%clk 0:02:53]} 7. a4 {[%clk 0:02:54]}  b4 {[%clk 0:02:53]} 8. O-O {[%clk 0:02:53]}  d6 {[%clk 0:02:53]} 9. a5 {[%clk 0:02:53]}  O-O {[%clk 0:02:47]} 10. h3 {[%clk 0:02:52]}  Kh8 {[%clk 0:02:38]} 11. Nbd2 {[%clk 0:02:52]}  Rb8 {[%clk 0:02:38]} 12. Nc4 {[%clk 0:02:50]}  Nd7 {[%clk 0:02:38]} 13. Ne3 {[%clk 0:02:47]}  Nc5 {[%clk 0:02:38]} 14. Bd5 {[%clk 0:02:41]}  Nd4 {[%clk 0:02:28]} 15. Nxd4 {[%clk 0:02:31]}  exd4 {[%clk 0:02:29]} 16. Nf5 {[%clk 0:02:28]}  Bxf5 {[%clk 0:02:28]} 17. exf5 {[%clk 0:02:28]}  b3 {[%clk 0:02:23]} 18. Bf4 {[%clk 0:02:09]}  Qd7 {[%clk 0:02:06]} 19. g4 {[%clk 0:01:53]}  c6 {[%clk 0:01:37]} 20. Bg2 {[%clk 0:01:53]}  Bf6 {[%clk 0:01:37]} 21. Qd2 {[%clk 0:01:37]}  h6 {[%clk 0:01:18]} 22. Bxh6 {[%clk 0:01:35]}  bxc2 {[%clk 0:01:16]} 23. Bxg7+ {[%clk 0:00:55]}  Bxg7 {[%clk 0:01:14]} 24. f6 {[%clk 0:00:53]}  Bxf6 {[%clk 0:00:46]} 25. Qh6+ {[%clk 0:00:53]}  Kg8 {[%clk 0:00:47]} 26. Qxf6 {[%clk 0:00:50]}  Qe6 {[%clk 0:00:47]} 27. Qf4 {[%clk 0:00:40]}  Nxd3 {[%clk 0:00:39]} 28. Qxd4 {[%clk 0:00:37]}  Rb3 {[%clk 0:00:33]} 29. Be4 {[%clk 0:00:28]}  c1=Q {[%clk 0:00:22]} 30. Raxc1 {[%clk 0:00:19]}  Nxc1 {[%clk 0:00:23]} 31. Rxc1 {[%clk 0:00:19]}  Rxh3 {[%clk 0:00:23]} 32. Bg2 {[%clk 0:00:16]}  Rh4 {[%clk 0:00:23]} 33. Bf3 {[%clk 0:00:11]}  d5 {[%clk 0:00:23]} 34. Qf4 {[%clk 0:00:11]}  Re8 {[%clk 0:00:19]} 35. Qg5+ {[%clk 0:00:10]}  Qg6 {[%clk 0:00:16]} 36. Qxh4 {[%clk 0:00:11]}  Kg7 {[%clk 0:00:16]} 37. Qg3 {[%clk 0:00:07]}  Re6 {[%clk 0:00:13]} 38. Rd1 {[%clk 0:00:06]}  Qg5 {[%clk 0:00:13]} 39. Kg2 {[%clk 0:00:05]}  Rh6 {[%clk 0:00:13]} 40. Re1 {[%clk 0:00:05]}  Rf6 {[%clk 0:00:13]} 41. Re5 {[%clk 0:00:04]}  Qg6 {[%clk 0:00:12]} 42. Re8 {[%clk 0:00:02]}  Qh6 {[%clk 0:00:07]} 43. Qe5 {[%clk 0:00:01]}  Kh7 {[%clk 0:00:03]} 44. g5 {[%clk 0:00:01]}  Qg7 {[%clk 0:00:03]} 45. Qxf6 {[%clk 0:00:01]}  Qg6 {[%clk 0:00:03]} 0-1


[Site "https://www.chess.com"]

[Event "Titled Tuesday Blitz September 28 2021"]
[White "Lazavik, Denis"]
[Black "Timofeev, Artyom"]
[WhiteFideId "13515110"]
[BlackFideId "4140419"]
[WhiteElo "2812"]
[BlackElo "2872"]
[Result "0-1"]
[Round "07"]
[TimeControl "180+1"]
[Date "2021.09.28"]
[WhiteClock "0:00:03"]
[BlackClock "0:00:20"]

1. d4 {[%clk 0:03:00]}  Nf6 {[%clk 0:02:59]} 2. c4 {[%clk 0:03:01]}  b6 {[%clk 0:02:59]} 3. f3 {[%clk 0:02:57]}  d5 {[%clk 0:02:59]} 4. cxd5 {[%clk 0:02:55]}  Nxd5 {[%clk 0:02:59]} 5. e4 {[%clk 0:02:54]}  Nf6 {[%clk 0:02:59]} 6. Nc3 {[%clk 0:02:52]}  e6 {[%clk 0:03:00]} 7. Be3 {[%clk 0:02:50]}  Be7 {[%clk 0:03:00]} 8. Qc2 {[%clk 0:02:42]}  O-O {[%clk 0:02:57]} 9. O-O-O {[%clk 0:02:42]}  Bb7 {[%clk 0:02:46]} 10. h4 {[%clk 0:02:41]}  Nc6 {[%clk 0:02:44]} 11. h5 {[%clk 0:02:38]}  Nb4 {[%clk 0:02:37]} 12. Qf2 {[%clk 0:02:36]}  c5 {[%clk 0:02:35]} 13. a3 {[%clk 0:02:24]}  Nc6 {[%clk 0:02:33]} 14. dxc5 {[%clk 0:02:23]}  Qc8 {[%clk 0:02:33]} 15. g4 {[%clk 0:02:10]}  Nd7 {[%clk 0:02:30]} 16. g5 {[%clk 0:02:04]}  Nxc5 {[%clk 0:02:29]} 17. g6 {[%clk 0:01:53]}  h6 {[%clk 0:02:29]} 18. Kb1 {[%clk 0:01:46]}  Ne5 {[%clk 0:02:26]} 19. Qg3 {[%clk 0:01:35]}  Bf6 {[%clk 0:02:25]} 20. Bd4 {[%clk 0:01:30]}  Qb8 {[%clk 0:02:20]} 21. Bg2 {[%clk 0:01:03]}  Nc4 {[%clk 0:02:03]} 22. f4 {[%clk 0:01:00]}  e5 {[%clk 0:02:00]} 23. fxe5 {[%clk 0:00:48]}  Bxe5 {[%clk 0:02:00]} 24. Qf2 {[%clk 0:00:26]}  fxg6 {[%clk 0:01:55]} 25. Qc2 {[%clk 0:00:20]}  Bxd4 {[%clk 0:01:47]} 26. Rxd4 {[%clk 0:00:19]}  Ne3 {[%clk 0:01:48]} 27. Qe2 {[%clk 0:00:20]}  Nxg2 {[%clk 0:01:24]} 28. Qxg2 {[%clk 0:00:21]}  Qe5 {[%clk 0:01:24]} 29. Nge2 {[%clk 0:00:21]}  g5 {[%clk 0:01:22]} 30. Rhd1 {[%clk 0:00:19]}  a6 {[%clk 0:01:17]} 31. Ng3 {[%clk 0:00:18]}  Rac8 {[%clk 0:01:09]} 32. Nd5 {[%clk 0:00:17]}  Kh8 {[%clk 0:01:06]} 33. Rb4 {[%clk 0:00:11]}  b5 {[%clk 0:01:05]} 34. Rbd4 {[%clk 0:00:07]}  Ne6 {[%clk 0:01:04]} 35. R4d2 {[%clk 0:00:07]}  Nf4 {[%clk 0:01:04]} 36. Qg1 {[%clk 0:00:08]}  Kh7 {[%clk 0:00:55]} 37. Nc3 {[%clk 0:00:03]}  Qc5 {[%clk 0:00:53]} 38. Qe1 {[%clk 0:00:02]}  b4 {[%clk 0:00:53]} 39. axb4 {[%clk 0:00:02]}  Qxb4 {[%clk 0:00:54]} 40. Rd7 {[%clk 0:00:02]}  Rb8 {[%clk 0:00:47]} 41. R1d2 {[%clk 0:00:02]}  Bc6 {[%clk 0:00:46]} 42. Rc7 {[%clk 0:00:02]}  Qb6 {[%clk 0:00:45]} 43. Re7 {[%clk 0:00:01]}  Rb7 {[%clk 0:00:45]} 44. Rxb7 {[%clk 0:00:01]}  Qxb7 {[%clk 0:00:45]} 45. Nf5 {[%clk 0:00:01]}  Qf7 {[%clk 0:00:38]} 46. Nd6 {[%clk 0:00:01]}  Qe6 {[%clk 0:00:39]} 47. e5 {[%clk 0:00:02]}  Rb8 {[%clk 0:00:36]} 48. Qc1 {[%clk 0:00:02]}  Be8 {[%clk 0:00:33]} 49. Qc2+ {[%clk 0:00:02]}  Kg8 {[%clk 0:00:34]} 50. Nce4 {[%clk 0:00:02]}  Bxh5 {[%clk 0:00:32]} 51. Nc5 {[%clk 0:00:03]}  Bg6 {[%clk 0:00:30]} 52. Nde4 {[%clk 0:00:03]}  Qxe5 {[%clk 0:00:29]} 53. Qc4+ {[%clk 0:00:03]}  Kh7 {[%clk 0:00:29]} 54. Ka1 {[%clk 0:00:04]}  Rc8 {[%clk 0:00:28]} 55. Rd7 {[%clk 0:00:03]}  Bxe4 {[%clk 0:00:23]} 56. Qxe4+ {[%clk 0:00:03]}  Qxe4 {[%clk 0:00:23]} 57. Nxe4 {[%clk 0:00:04]}  Rc6 {[%clk 0:00:21]} 58. Ng3 {[%clk 0:00:02]}  Kg6 {[%clk 0:00:21]} 59. b4 {[%clk 0:00:01]}  h5 {[%clk 0:00:20]} 60. Ne4 {[%clk 0:00:02]}  h4 {[%clk 0:00:21]} 61. Nd6 {[%clk 0:00:02]}  h3 {[%clk 0:00:20]} 62. Ne8 {[%clk 0:00:03]}  h2 {[%clk 0:00:20]} 63. Rxg7+ {[%clk 0:00:03]}  Kh6 {[%clk 0:00:20]} 0-1


[Site "https://www.chess.com"]